Cogmind - Beta 14 @@@ ROGUE MODE // 2024.10.13 @ 14:38:18 Player: Pitt Result: Destroyed by S-10 Pest with Light Assault Rifle Performance ------------- Evolutions (0) 0 Regions Visited (1) 200 Robots Destroyed (23) 115 Value Destroyed (246) 246 Prototype IDs (0) 0 Alien Tech Used (0) 0 Bonus (0) 0 TOTAL SCORE: 561 Bonus ------- None Cogmind --------- Core Integrity 0/250 Matter 195/300 Energy 100/100 System Corruption 6% Temperature Hot (259) Movement Rolling (80) Location -10/Materials Parts ------- > --- POWER (1) -------- (None) > --- PROPULSION (2) --- Wheel Wheel > --- UTILITY (2) ------ Small Storage Unit Improved Terrain Scanner > --- WEAPON (2) ------- Assault Rifle Assault Rifle > --- INVENTORY (8) ---- Wheel Wheel Heat Sink Structural Scanner Seismic Detector Medium Laser Mining Laser Welding Torch Peak State ------------ > --- POWER ------------ Light Ion Engine > --- PROPULSION ------- Wheel Compact Wheel > --- UTILITY ---------- Small Storage Unit Improved Terrain Scanner > --- WEAPON ----------- Assault Rifle Assault Rifle > --- INVENTORY -------- Light Ion Engine Mining Laser [Rating: 9] Favorites ----------- Power Light Ion Engine Engine Light Ion Engine Propulsion Wheel Wheel Wheel Utility Small Storage Unit Device Improved Terrain Scanner Storage Small Storage Unit Weapon Assault Rifle Energy Gun Medium Laser Ballistic Gun Assault Rifle Special Weapon Mining Laser Build | -11 -10 ------- Run | Yrd Mat Slots Evolved . | . . Power . | . . Propulsion . | . . Utility . | . . Weapon . | . . Parts Attached 20 | 8 12 Power 2 | 1 1 Engine 2 | 1 1 Core . | . . Reactor . | . . Propulsion 7 | 3 4 Treads . | . . Leg . | . . Wheel 7 | 3 4 Hover . | . . Flight . | . . Utility 2 | 2 . Device 1 | 1 . Storage 1 | 1 . Processor . | . . Hackware . | . . Protection . | . . Artifact . | . . Weapon 9 | 2 7 Energy Gun 1 | . 1 Energy Cannon . | . . Ballistic Gun 5 | 2 3 Ballistic Cannon . | . . Launcher . | . . Special Weapon 3 | . 3 Impact Weapon . | . . Slashing Weapon . | . . Piercing Weapon . | . . Special Melee Weapon . | . . Unidentified Prototypes . | . . Parts Lost 4 | . 4 Power 2 | . 2 Propulsion 2 | . 2 Utility . | . . Weapon . | . . Highest Loss Streak 2 | . 2 To Critical Strikes . | . . Average Slot Usage (%) 96 | . 96 Engine 11 | . 11 Wheel 27 | . 27 Device 14 | . 14 Storage 14 | . 14 Energy Gun 1 | . 1 Ballistic Gun 21 | . 21 Special Weapon 5 | . 5 Peak Build Rating 9 | 9 9 Average Rating 8 | 7 8 On Entrance 4 | . 9 Naked Turns . | . . Heaviest Build 13 | 13 13 Greatest Support 26 | 26 20 Greatest Overweight (x) . | . . Average Overweight (x) . | . . Largest Inventory Capacity 8 | 8 8 Average Capacity 7 | 7 8 Most Carried 8 | 7 8 Average Carried 6 | 4 7 Final Capacity 8 | 8 8 Final Carried 8 | 6 8 Class Distribution -------------------- 77% | Mutant 22% | Scavenger-Mutant Dominant Class ---------------- Mutant | -10/Materials Resources | -11 -10 ----------- Run | Yrd Mat Matter Collected 663 | 394 269 Remotely . | . . Salvage Created 599 | 218 381 Parts 48 | 15 33 Haulers Intercepted . | . . Recyclers Shooed 1 | . 1 Parts Field Recycled . | . . Retrieved Matter . | . . Parts Self-Destructed . | . . Prevented . | . . Kills | -11 -10 ------- Run | Yrd Mat Combat Hostiles Destroyed 10 | . 10 Guns 10 | . 10 Classes Destroyed 6 | 2 4 Worker 2 | . 2 Builder 2 | . 2 Tunneler 8 | 6 2 Recycler 1 | 1 . Swarmer 7 | . 7 Grunt 3 | . 3 Best Kill Streak 4 | 4 4 Combat Bots Only 3 | . 3 Max Kills in Single Turn 1 | 1 1 Gunslinging . | . . Exploded . | . . Melee . | . . Uniques/NPCs Destroyed . | . . Combat | -11 -10 -------- Run | Yrd Mat Hostile Shots Fired 73 | . 73 Missed 13 | . 13 Damage Taken 729 | . 729 Core 251 | . 251 Absorbed by Shields . | . . Core Remaining (%) 100 | 100 . Volleys Fired 77 | 19 58 Largest 2 | 2 2 Hottest 100 | 40 100 Shots Fired 147 | 38 109 Gun 140 | 38 102 Cannon . | . . Launcher . | . . Special 7 | . 7 Kinetic 123 | 38 85 Thermal 24 | . 24 Explosive . | . . Electromagnetic . | . . Robot Hit Streak 11 | 6 11 Robot Miss Streak 6 | 1 6 Penetration Max . | . . Secondary Targets 1 | . 1 Max Gunslinging Chain 1 | . 1 Shots Hit Robots 72 | 25 47 Core Hits 26 | 8 18 Critical Kills 1 | . 1 Critical Parts Destroyed . | . . Critical Strikes 1 | . 1 Destroy 1 | . 1 Melee Attacks . | . . Impact . | . . Slashing . | . . Piercing . | . . Sneak Attacks . | . . Combat Hostiles . | . . Follow-up Attacks . | . . Damage Inflicted 928 | 340 588 Guns 928 | 340 588 Cannons . | . . Explosions . | . . Melee . | . . Ramming . | . . Kinetic 813 | 340 473 Thermal 115 | . 115 Explosive . | . . Electromagnetic . | . . Impact . | . . Slashing . | . . Piercing . | . . Highest Corruption 6 | . 6 Average Corruption 6 | . 6 Corruption Purged . | . . Corruption Blocked . | . . Effects 26 | . 26 Message Errors 10 | . 10 Matter Fused 3 | . 3 Heat Flow Errors 4 | . 4 Energy Discharges 3 | . 3 Data Loss (minor) 6 | . 6 Overload Shots . | . . Overflow Damage . | . . Projectiles . | . . Explosions . | . . Melee . | . . Knockbacks . | . . Impact . | . . Kinetic . | . . Secondary . | . . Self-Inflicted Damage . | . . Shots . | . . Rammed . | . . Targets Rammed . | . . Kicked . | . . Crushed . | . . Highest Temperature 228 | 6 228 Average Temperature 42 | 6 42 Received Heat Transfer 72 | . 72 Siege Activations . | . . Robots Corrupted . | . . Combat Hostiles . | . . Parts Fried . | . . Impact Corruptions . | . . Robots Melted . | . . Combat Hostiles . | . . Parts Melted . | . . Heat Transferred 333 | . 333 Parts Sabotaged . | . . Parts Stolen . | . . Parts Stripped . | . . Power Chain Reactions . | . . Alert | -11 -10 ------- Run | Yrd Mat Peak Influence 203 | 35 203 Initial 22 | . 22 Average 46 | 20 50 Maximum Alert Level 1 | . 1 Low Security (%) 99 | 100 99 Level 1 . | . . Level 2 . | . . Level 3 . | . . Level 4 . | . . Level 5 . | . . High Security . | . . Max Security . | . . Squads Dispatched 2 | . 2 Investigation 1 | . 1 Extermination . | . . Reinforcement 1 | . 1 Assault . | . . Garrison . | . . Intercept . | . . Searches Triggered . | . . Construction Impeded . | . . Haulers Reinforced . | . . Active Scanning Responses . | . . Cargo Convoy Interrupts . | . . Stealth | -11 -10 --------- Run | Yrd Mat Distress Signals . | . . Communications Jammed . | . . Distress Signals . | . . Times Spotted 17 | . 17 Peak Tracking Total 6 | . 6 Tactical Retreats . | . . Traps | -11 -10 ------- Run | Yrd Mat Traps Triggered 1 | . 1 Indirectly . | . . Trap Hack Attempts . | . . Triggered . | . . Disarmed . | . . Reprogrammed . | . . Reused . | . . Traps Extracted . | . . Installed . | . . Triggered . | . . Machines | -11 -10 ---------- Run | Yrd Mat Machines Disabled . | . . Max in Single Turn . | . . Machines Repaired . | . . Machines Dismantled . | . . Machines Sabotaged . | . . Overloaded Fab Kills . | . . Hacking | -11 -10 --------- Run | Yrd Mat Machines Accessed 5 | . 5 Terminals 4 | . 4 Fabricators . | . . Repair Stations . | . . Recycling Units 1 | . 1 Scanalyzers . | . . Garrison Access . | . . Total Hacks 17 | . 17 Successful 7 | . 7 Failed 10 | . 10 Catastrophic 1 | . 1 Database Lockouts . | . . Manual 15 | . 15 Terminals 15 | . 15 Fabricators . | . . Repair Stations . | . . Recycling Units 2 | . 2 Scanalyzers . | . . Garrison Access . | . . Terminal Hacks 2 | . 2 Terminal Index 1 | . 1 Patrol Status 1 | . 1 Fabricator Hacks . | . . Repair Station Hacks . | . . Recycling Unit Hacks . | . . Scanalyzer . | . . Garrison Access Hacks . | . . Unauthorized Hacks 5 | . 5 Terminals 5 | . 5 Track 2 | . 2 Assimilate 1 | . 1 Botnet 1 | . 1 Operators 1 | . 1 Fabricators . | . . Repair Stations . | . . Recycling Units . | . . Scanalyzers . | . . Garrison Access . | . . Data Cores Recovered . | . . Used . | . . Hacking Detections 5 | . 5 Full Trace Events . | . . Feedback Events . | . . Feedback Blocked . | . . Robot Schematics Acquired . | . . Robots Built . | . . Authchips . | . . Time . | . . Total Robot Build Rating . | . . Part Schematics Acquired . | . . Parts Built . | . . Authchips . | . . Time . | . . Total Part Build Rating . | . . Parts Repaired . | . . Time . | . . Parts Recycled . | . . Recycled Matter . | . . Retrieved Matter . | . . Retrieved Components . | . . Parts Scanalyzed . | . . Part Schematics Acquired . | . . Parts Damaged . | . . Bothacking | -11 -10 ------------ Run | Yrd Mat Used RIF Installer . | . . Robots Hacked . | . . Non-combat . | . . Combat . | . . Robot Hacks Applied . | . . Relay Couplers Released . | . . Fabnet Peak Effective % . | . . Robots Rewired . | . . Allies Hacked . | . . Hacks Repelled . | . . Allies | -11 -10 -------- Run | Yrd Mat Total Allies . | . . Largest Group . | . . Highest-Rated Group . | . . Highest-Rated Ally . | . . Total Orders . | . . Ally Attacks . | . . Total Damage . | . . Kills . | . . Allies Corrupted . | . . Allies Melted . | . . Intel | -11 -10 ------- Run | Yrd Mat Robot Analysis Total . | . . Derelict Logs Recovered . | . . Drone Launches . | . . Drone Recoveries . | . . Exploration | -11 -10 ------------- Run | Yrd Mat Turns Passed 1945 | 263 1682 Spaces Moved 463 | 108 355 Core 3 | 3 . Treads . | . . Legs . | . . Wheels 460 | 105 355 Hover . | . . Flight . | . . Fastest Speed 50 | 50 80 Average Speed 81 | 84 80 Slowest Speed 90 | 90 80 Overloaded Moves . | . . Propulsion Burnouts . | . . Robots Hopped . | . . Cave-ins Triggered 1 | . 1 Exploration Rate (%) 32 | 5 60 Regions Visited 1 Branch Regions . Pre-discovered Areas . | . . Known Exits Taken . | . . Unknown Exits Taken 1 | 1 . Scrap Searched . | . . Spaces Dug 7 | . 7 Terrain Destroyed 7 | . 7 Melee . | . . Projectile 7 | . 7 AOE . | . . Terrain Rammed . | . . Walls Destroyed . | . . Machines Disabled . | . . Actions | -11 -10 --------- Run | Yrd Mat Total 1864 | 238 1626 Wait 1290 | 95 1195 Move 462 | 107 355 Hop . | . . Pick Up 12 | 7 5 Fast Attach 7 | 7 . Attach 3 | . 3 Detach . | . . Swap 10 | 1 9 Drop 3 | 2 1 Fire 77 | 19 58 Melee . | . . Ram . | . . Kick . | . . Crush . | . . Escape Stasis . | . . Rewire . | . . Trap . | . . Miscellaneous . | . . Route ------- -11/Scrapyard -10/Materials (discovered 2 exits: [*Mat] / [*Min]) History --------- Turn | Location | Event 9 | -11/Scrapyard | Discovered new exit (range 16) 264 | -11/Scrapyard | Entered Materials 303 | -10/Materials | Build established: Mutant 1082 | -10/Materials | Discovered new exit (range 5) 1119 | -10/Materials | Crushed by falling debris 1411 | -10/Materials | Build established: Scavenger-Mutant 1508 | -10/Materials | Core integrity fell below 50% 1658 | -10/Materials | Core integrity fell below 20% 1905 | -10/Materials | Discovered new exit (range 13) 1942 | -10/Materials | Build established: Mutant 1946 | -10/Materials | Destroyed by S-10 Pest with Light Assault Rifle Last Messages --------------- 01787_ System corrupted: Heat flow error (+240). 01815_ NZHW3A&7 JX1AZMI9AWJ|USV5EY1IUPYOVXCT, 01821_ ALERT: Hostiles spotted, dispatching reinforcements to Terminal M003. 01828_ T-07 Excavator destroyed. 01832_ D|O1 0FV1FYPSUTRVMUJF09PXC5J=PEJI 01833_ Acquired 19 matter. 01835_ Extracted 50 matter. 01854_ G-34 Mercenary destroyed. 01874_ U-05 Engineer builds a Door. 01875_ T-07 Excavator destroyed. 01879_ Acquired 28 matter. 01888_ System corrupted: Matter fused (-5). 01890_ K-01 Serf collects debris. 01898_ U-05 Engineer destroyed. 01905_ EXIT=FOUND 01906_ Acquired 29 matter. 01918_ System corrupted: Component data lost. 01944_ S-10 Pest destroyed. 01946_ System corrupted: Heat flow error (+259). Map ----- +----------------------------------------------------+ | ?????????#?? ????????????#??? | | ???????#???? ?????????#?????? | | ???????#????# #?????##??????? ? | | ???????# #### #???????#?#??#??? | | ???????# #??#?#??# #????## | | ????????? #########+####??# | | ??????#???? # #???# | | ????????????# # = """ #???# | | ????????????# #! """"" #???# | | ??????"?????+ +! !""""" ##### | | ??????"?????# # %""""" + + | | ??????????? # # = """ ## ## | | ?? ?????????# # = ! = ## #? | | ?????????"??# ############## ## | | ??????? ????# #??#???#???#?# | | ??????????#?# #????????????# | | ?############ ##?????#???### | | ?# ## #??? ? ????##+## | | ?# = = ## #????"?"???# %[ | | ?# + #??????????# ! " | | ?# ## # ?? ?? ### " | | ?# ## #?????? ??## " | | ?# ########?? ?"" ?#?# " | | ?# #??????? ?"?? ### " | | ?# #?#??????? ??? ?#?# ! | | ?# %@ ##????#? ? ####### | | ?######s###????#######+########## | | ?????#*s ??? | | ?????# ? | | ???#?# o | | ?????########/#?##### ######### | | #????????????? T?##?# ??#?## | | ???#???#?????? #?##? #?#?# | | ?????????????? ? #?## ??#?### "" | | ??????????????????#??? ????## "T | | ?????????????? #### ?##?#?# "" | | ??#???????? ??? ??#?????????# % | | ???????????????? ??????#?#??##### | | ??????????????? ???? #?#??###?#? | | ?????????????????##?# ????##?#### | | ???????????????#??????##??#??#### | | ???????????????????????#??#?#?##? | | ???????????????????????????#####? | | ???????????????#?? ? ???##?####? | | ??????????????????? ?###?###?## | | ????????????????##?? ??##?###### | | ??????????????????? ?????#?##### | | ??????????????????? ????#???##?## | | ??????????????????? ?#???#??#### | | ??????????????????????#???####??? | +----------------------------------------------------+ Best States ------------- Heat Dissipation 25 Energy Generation 10 Energy Capacity 125 Matter Stores 300 Matter Capacity 300 Sight Range 16 Terrain Scan Range 16 Terrain Scan Density 10 Evasion (%) 44 Item Schematics ----------------- None Robot Schematics ------------------ None Fabricated ------------ Nothing Alien Tech Used ----------------- None Achievements -------------- None Challenges ------------ None Game ------ Seed DataDrainedDoomcannon Manual? 0 Play Time 00:13:40 Cumulative 209.8 hours Start 2024.10.13 @ 14:27:08 End 2024.10.13 @ 14:38:18 Sessions 1 Manual Loads 0 Difficulty Rogue Special Mode None Game No. 326 Rogue 326 Adventurer 0 Explorer 0 Win Type - Total 0 Types 0/0/0/0/0/0/0/0/0 Lore% 31 Gallery% 54 Achievement% 40 Wizard Run 0 Options --------- Layout 0 ASCII 0 Keyboard 0 Movement Mouse Keybinds 0 Fullscreen 1 Font 18/SmallcapsGlow Map View 76x50 Zoom Use 0% Tactical HUD 1 Map Filters NONE Filters NONE Steam 1 RUN: 08e90c35-0711-4e94-b84e-3925736dfae0